bitfinex-derivatives/quotes_ETHF0:USTF0_20250810
["timestamp","ask_amount","ask_price","bid_price","bid_amount"]
[1754826488586,3.16365,4215.8,4215.7,1.6514]
[1754826488983,1.18575,4216.3,4215.2,2.11574658]
[1754826488984,0.47438,4215.5,4215.2,2.11574658]
[1754826489187,2.6893,4215.3,4215.2,2.0751]
[1754826489693,2.6893,4215.0,4214.9,3.34344658]
[1754826489879,2.1679,4215.0,4214.9,2.6597]
[1754826490085,0.9955,4215.0,4214.9,2.6597]
[1754826490379,0.4086,4215.0,4214.9,2.6597]
[1754826490984,0.47442,4215.2,4214.9,1.0597]
[1754826491191,23.072,4216.8,4214.8,1.69204658]
[1754826491192,0.5869,4216.1,4215.2,0.5846]
[1754826491491,2.23568,4215.5,4215.4,2.6597]
[1754826491692,1.7613,4215.5,4215.4,2.6597]
[1754826492289,0.15382491,4216.4,4215.4,0.4237]
[1754826492585,2.11578,4216.4,4216.1,1.85682498]
[1754826492791,2.6893,4216.2,4216.1,1.85682498]
[1754826492983,2.6893,4216.2,4216.1,2.23282498]
[1754826493188,2.6893,4216.2,4216.1,3.34022498]
[1754826494193,2.6893,4216.2,4216.1,3.92482498]
[1754826494392,2.1679,4216.2,4216.1,3.92482498]
[1754826495395,2.6893,4216.2,4216.1,2.232659]
[1754826495595,1.59442,4216.1,4216.0,1.264959]
[1754826495896,3.16362,4216.1,4216.0,1.264959]
[1754826496490,1.1201,4215.7,4215.6,1.264959]
[1754826496693,2.6893,4215.7,4215.6,1.640959]
[1754826496891,2.6893,4215.7,4215.6,2.916359]
[1754826497090,2.1679,4215.7,4215.6,2.916359]
[1754826497290,2.6893,4215.7,4215.6,2.916359]
[1754826498002,2.6893,4215.7,4215.6,2.622959]
[1754826498295,2.6893,4215.7,4215.6,1.264959]
[1754826501698,2.6893,4215.7,4215.6,1.640959]
[1754826501894,2.6893,4215.7,4215.6,2.232659]
[1754826502494,2.6893,4215.7,4215.6,2.622959]
[1754826502700,2.6893,4215.7,4215.6,3.340059]
[1754826502898,2.6893,4215.7,4215.6,1.640959]
[1754826503201,2.6893,4215.7,4215.6,1.264959]
[1754826504195,2.6893,4215.7,4215.6,1.856659]
[1754826504399,2.6893,4215.7,4215.6,2.622959]
[1754826505194,2.6893,4215.7,4215.6,1.358]
[1754826505402,2.6893,4215.7,4215.6,2.622959]
[1754826505700,3.16366,4215.7,4215.6,2.622959]
[1754826506200,3.16366,4215.7,4215.6,3.340059]
[1754826508502,3.16366,4215.7,4215.6,2.232659]
[1754826510201,3.16366,4215.7,4215.5,1.264959]
[1754826510391,2.18138,4215.5,4215.3,1.264959]
[1754826510597,2.6893,4215.4,4215.3,1.264959]
[1754826510999,3.16371,4215.3,4215.2,1.264959]
[1754826511502,2.6893,4215.2,4215.1,1.264959]
[1754826511800,1.59453,4215.1,4214.9,1.264959]
[1754826512008,2.6893,4215.0,4214.9,1.264959]
[1754826513506,1.7613,4215.0,4214.9,3.924659]
[1754826513807,2.6893,4215.0,4214.9,3.340059]
[1754826515805,2.6893,4215.0,4214.9,1.264959]
[1754826516199,0.47445,4214.9,4214.8,1.264959]
[1754826516406,3.06907,4214.7,4214.6,3.033959]
[1754826517005,3.06907,4214.7,4214.6,3.318159]
[1754826518604,3.06907,4214.7,4214.6,3.895859]
[1754826520109,3.06907,4214.7,4214.6,2.6309]
[1754826527317,2.56877,4214.7,4214.6,2.6309]
[1754826527725,0.47446,4214.9,4214.8,2.6309]
[1754826527920,0.47445,4215.0,4214.8,2.6309]
[1754826528129,0.47443,4215.1,4214.8,1.0512]
[1754826528423,2.17112,4215.2,4215.1,2.6309]
[1754826528623,2.1711,4215.4,4215.3,1.0512]
[1754826528824,2.1711,4215.4,4215.3,2.6309]
[1754826529127,0.3992,4215.4,4215.3,2.6309]
[1754826529320,0.47439,4215.5,4215.3,1.0512]
[1754826529626,1.04579,4215.5,4215.4,2.6309]
[1754826529827,1.44499,4215.5,4215.4,2.6309]
[1754826530021,2.17109,4215.5,4215.4,2.6309]
[1754826531022,0.47443,4215.1,4214.9,1.264959]
[1754826531221,2.5946,4215.0,4214.9,2.615559]
[1754826531616,2.5946,4215.0,4214.9,3.033959]
[1754826531818,2.5946,4215.0,4214.9,3.318159]
[1754826532226,1.2721,4215.0,4214.9,2.6309]
[1754826532420,0.47441,4215.3,4215.2,2.6309]
[1754826532726,1.0458,4215.4,4215.3,2.6309]
[1754826533127,1.445,4215.4,4215.3,2.6309]
[1754826534329,2.17107,4215.6,4215.5,1.0512]
[1754826534529,2.17107,4215.6,4215.5,2.6309]
[1754826534729,1.2721,4215.6,4215.5,2.6309]
[1754826536428,1.6967,4215.6,4215.5,2.6309]
[1754826538728,1.6967,4215.6,4215.5,3.89736538]
[1754826540736,1.6967,4215.6,4215.5,2.6309]
[1754826542433,1.6967,4215.6,4215.5,3.89769756]
[1754826545033,2.5779,4215.6,4215.5,3.89769756]
[1754826545241,2.5779,4215.6,4215.5,3.31999756]
[1754826545741,2.5779,4215.6,4215.5,2.0532]
[1754826547134,2.5779,4215.6,4215.5,0.9689]
[1754826547331,2.5779,4215.6,4215.4,1.26679756]
[1754826547533,0.1542741,4215.7,4215.4,1.26679756]
[1754826547534,2.97398,4215.5,4215.4,0.5566]
[1754826548136,2.97398,4215.5,4215.4,0.931]
[1754826548541,2.97398,4215.5,4215.4,1.7534]
[1754826548743,2.97398,4215.5,4215.4,1.3243]
[1754826548940,2.97398,4215.5,4215.4,0.931]
[1754826549543,2.49448,4215.5,4215.4,2.0215]
[1754826549843,2.97398,4215.5,4215.4,2.0215]
[1754826550643,2.97398,4215.5,4215.4,3.28829756]
[1754826553039,2.97398,4215.5,4215.4,3.86059756]
[1754826553345,2.97398,4215.5,4215.4,2.5938]
[1754826556246,0.57705511,4215.7,4215.4,2.5938]
[1754826556549,1.51095511,4215.7,4215.6,3.86138376]
[1754826556744,0.53555511,4215.7,4215.6,3.86138376]
[1754826556955,23.2483,4215.9,4215.8,1.0358]
[1754826557150,24.42949511,4215.9,4215.8,2.5938]
[1754826557849,23.95515511,4215.9,4215.8,2.5938]
[1754826558543,24.37795511,4215.9,4215.8,2.5938]
[1754826558754,24.66395511,4215.9,4215.8,2.5938]
[1754826559951,25.52085511,4215.9,4215.8,2.5938]
[1754826562145,23.02125511,4215.9,4215.8,2.5938]
[1754826563145,24.66395511,4215.9,4215.8,2.5938]
[1754826563455,23.02125511,4215.9,4215.8,2.5938]
[1754826563957,23.57385511,4215.9,4215.8,2.5938]
[1754826564157,23.95515511,4215.9,4215.8,2.5938]
[1754826564458,24.37795511,4215.9,4215.8,2.5938]
[1754826564751,24.3801496,4215.9,4215.8,2.5938]
[1754826565354,23.0014496,4215.9,4215.8,2.5938]
[1754826566258,23.5540496,4215.9,4215.8,2.5938]
[1754826566461,24.6441496,4215.9,4215.8,2.5938]
[1754826566753,1.13775,4215.8,4215.7,0.7677]
[1754826566949,2.4996,4215.7,4215.6,2.45974658]
[1754826567153,2.4996,4215.7,4215.6,0.3744]
[1754826567552,1.51909,4215.4,4215.3,1.69204658]
[1754826567748,2.4996,4215.3,4215.2,2.45974658]
[1754826567952,2.6560496,4215.3,4215.2,2.88884658]
[1754826568348,2.6560496,4215.3,4215.2,3.15694658]
[1754826568548,2.6560496,4215.3,4215.2,3.71354658]
[1754826568759,2.6560496,4215.3,4215.2,3.28444658]
[1754826569061,2.6560496,4215.3,4215.2,2.0215]
[1754826569454,2.6560496,4215.3,4215.1,1.69204658]
[1754826569757,2.4996,4215.2,4215.1,3.71354658]
[1754826570661,2.4996,4215.2,4215.1,2.0215]
[1754826572668,2.1183,4214.9,4214.7,2.08534658]
[1754826572864,2.97405,4214.9,4214.8,1.6471]
[1754826573157,1.40847,4213.8,4213.7,4.08741442]
[1754826573360,1.18656,4213.4,4212.8,0.5723]
[1754826573664,0.47467,4212.9,4212.8,0.5723]
[1754826573864,23.28767,4212.9,4212.8,0.5723]
[1754826574057,23.44414817,4212.9,4212.8,0.5723]
[1754826574663,0.85601,4212.6,4212.5,0.4291]
[1754826574864,0.47479,4211.9,4211.8,1.5924]
[1754826575064,0.47479,4211.9,4211.8,2.0215]
[1754826575461,0.47477,4212.1,4212.0,2.1218]
[1754826575660,0.56357817,4212.2,4212.1,1.7217]
[1754826575957,0.56357817,4212.2,4212.1,2.1218]
[1754826576364,0.4071,4212.2,4212.1,2.1218]
[1754826576665,0.4071,4212.2,4212.1,2.7231]
[1754826577761,0.4893,4212.2,4212.1,2.7231]
[1754826578264,0.5187,4212.2,4212.1,2.7231]
[1754826578965,1.0232,4212.2,4212.1,2.7231]
[1754826579666,0.5187,4212.2,4212.1,2.7231]
[1754826581568,1.0232,4212.2,4212.1,2.7231]
[1754826582167,22.812,4212.4,4212.1,2.47989897]
[1754826582368,22.812,4212.4,4212.3,2.7231]
[1754826582563,23.1971,4212.4,4212.3,2.7231]
[1754826582756,23.2191,4212.4,4212.3,2.7231]
[1754826582956,23.8352,4212.4,4212.3,1.2816]
[1754826583161,23.8352,4212.4,4212.3,2.7231]
[1754826583358,22.8414,4212.4,4211.6,1.07611]
[1754826583667,0.5187,4212.0,4211.9,2.7231]
[1754826584060,0.5187,4212.0,4211.9,4.12259897]
[1754826584261,0.0294,4211.8,4209.8,0.453]
[1754826584458,0.90708,4210.3,4210.2,1.0804]
[1754826584663,23.73748,4210.3,4210.2,2.1218]
[1754826586268,24.24198,4210.3,4210.2,2.7231]
[1754826588264,23.73748,4210.3,4210.2,2.7231]
[1754826588467,0.52193,4210.6,4210.5,1.2819]
[1754826588769,23.73443,4210.6,4210.5,2.7231]
[1754826589168,24.23893,4210.6,4210.5,2.7231]
[1754826589469,23.73443,4210.6,4210.5,2.7231]
[1754826590568,1.21641,4211.8,4210.5,4.10059897]
[1754826590879,0.93632,4211.6,4211.5,2.7231]
[1754826591067,23.70392,4211.6,4211.5,2.7231]
[1754826591572,23.73332,4211.6,4211.5,2.7231]
[1754826592471,23.70392,4211.6,4211.5,2.7231]
[1754826592771,0.47482,4211.6,4211.5,2.7231]
[1754826593072,23.27282,4211.6,4211.5,2.7231]
[1754826593273,22.798,4211.6,4211.5,2.7231]
[1754826594572,22.794,4211.6,4211.5,1.0804]
[1754826594770,0.47481,4211.7,4211.5,1.0804]
[1754826594971,23.1751,4211.6,4211.5,1.0804]
[1754826595175,0.93636,4211.3,4211.2,2.7231]
[1754826596576,0.85996,4211.3,4211.2,2.7231]
[1754826596768,23.64696,4211.3,4211.2,2.7231]
[1754826597274,0.85996,4211.3,4211.2,2.7231]
[1754826597480,23.69396,4211.3,4211.2,2.7231]
[1754826597665,0.47491,4210.8,4210.7,0.453]
[1754826597871,0.86001,4210.8,4210.7,2.1218]
[1754826598167,0.86001,4210.8,4210.7,0.5884]
[1754826598168,1.44091,4210.8,4210.7,0.5884]
[1754826598368,1.44091,4210.8,4210.7,1.1897]
[1754826598569,0.47493,4210.6,4210.4,0.6013]
[1754826598774,0.3851,4210.5,4210.4,3.05919897]
[1754826599374,0.3851,4210.5,4210.4,4.10059897]
[1754826599573,0.4615,4210.5,4210.4,4.10059897]
[1754826600571,0.4321,4210.5,4210.4,4.10059897]
[1754826600880,23.1681,4210.5,4210.4,4.10059897]
[1754826601076,22.78,4210.7,4210.6,2.1347]
[1754826601379,22.94338703,4210.7,4210.6,2.7231]
[1754826602480,23.93724318,4210.7,4210.6,2.7231]
[1754826602882,23.98424318,4210.7,4210.6,2.7231]
[1754826603183,24.01364318,4210.7,4210.6,2.7231]
[1754826603577,0.47493,4210.6,4210.4,1.37749897]
[1754826603782,0.47493,4210.6,4210.4,2.52399897]
[1754826603783,0.4615,4210.5,4210.4,2.52399897]
[1754826603983,0.4615,4210.5,4210.4,2.91089897]
[1754826604376,0.4321,4210.5,4210.4,4.10059897]
[1754826605377,0.3851,4210.5,4210.4,1.37749897]
[1754826605680,1.24707318,4210.6,4210.5,2.6068]
[1754826606182,23.24893,4210.6,4210.5,2.6068]
[1754826606384,24.41607318,4210.6,4210.5,2.6068]
[1754826606584,24.44057318,4210.6,4210.5,3.98429897]
[1754826606877,24.44057318,4210.6,4209.4,1.02151112]
[1754826606878,0.9252,4210.4,4210.3,1.113]
[1754826607383,0.9252,4210.4,4210.3,1.5098]
[1754826607586,0.9252,4210.4,4210.3,2.1677]
[1754826608582,0.4348,4210.4,4210.3,1.37749897]
[1754826608782,0.90979,4210.1,4210.0,2.0518]
[1754826608985,23.67679,4210.1,4210.0,2.0518]
[1754826609183,0.47503,4209.7,4209.6,2.6068]
[1754826609378,0.90983,4209.7,4209.6,2.6068]
[1754826609574,1.40023,4209.7,4209.6,2.1677]
[1754826609780,1.57064051,4209.7,4209.6,2.1677]
[1754826610080,0.47506,4209.5,4209.4,1.02151112]
[1754826610386,0.89456,4209.5,4209.4,5.00581009]
[1754826610588,23.23806,4209.5,4209.4,5.00581009]
[1754826610886,24.01020318,4209.5,4209.4,5.00581009]
[1754826611390,24.93540318,4209.5,4209.4,3.18921112]
[1754826611585,24.93540318,4209.5,4209.4,3.62831112]
[1754826612187,24.93540318,4209.5,4209.4,3.18921112]
[1754826613187,24.93540318,4209.5,4209.4,1.02151112]
[1754826613788,26.20718633,4209.5,4209.4,1.02151112]
[1754826615298,24.93540318,4209.5,4209.4,1.02151112]
[1754826617397,26.21169288,4209.5,4209.4,1.57951112]
[1754826618294,26.21169288,4209.5,4209.4,1.02151112]
[1754826619290,24.93540318,4209.5,4209.4,1.02151112]
[1754826619992,32.21169288,4209.5,4209.4,1.02151112]
[1754826620586,30.93540318,4209.5,4209.4,1.02151112]
[1754826620895,0.8703,4207.3,4207.2,1.4938]
[1754826621091,0.89742,4207.2,4207.1,1.0547]
[1754826621292,1.66956318,4207.2,4207.1,1.6127]
[1754826621590,2.15506318,4207.2,4207.1,1.805]
[1754826621795,3.22542898,4207.2,4207.1,1.95874]
[1754826621989,1.93466318,4207.2,4207.1,2.39784]
[1754826622189,2.21566318,4207.2,4207.1,2.39784]
[1754826622698,2.24276318,4207.2,4207.1,2.39784]
[1754826622989,2.81696318,4207.2,4207.1,2.39784]
[1754826623194,2.81696318,4207.2,4207.1,1.95874]
[1754826624395,2.81651975,4207.2,4207.1,1.95874]
[1754826625486,1.46935,4207.1,4205.5,1.5521]
[1754826625686,0.47543,4206.3,4206.2,2.6068]
[1754826625891,23.22743,4206.3,4206.2,2.6068]
[1754826627194,0.47541,4206.4,4206.2,2.6068]
[1754826627395,22.749,4206.3,4206.2,2.43219897]
[1754826627595,22.749,4206.6,4206.2,2.43219897]
[1754826627799,22.749,4206.7,4206.2,2.43219897]
[1754826627992,22.749,4206.7,4206.6,0.2952]
[1754826628191,22.749,4206.7,4206.6,2.6068]
[1754826629494,23.9053296,4206.7,4206.6,3.98429897]
[1754826629698,23.5872296,4206.7,4206.6,3.98429897]
[1754826630100,0.47535,4206.9,4206.6,3.98429897]
[1754826630401,1.46905,4206.9,4206.8,2.6068]
[1754826630598,2.04325,4206.9,4206.8,2.6068]
[1754826630792,24.79025,4206.9,4206.8,2.1677]
[1754826630995,0.76758,4206.6,4206.5,1.4938]
[1754826631197,2.04328,4206.6,4206.5,1.4938]
[1754826631394,2.04328,4206.6,4206.5,2.87129897]
[1754826631596,0.47537,4206.8,4206.5,3.98429897]
[1754826631793,0.47537,4206.8,4206.7,2.6068]
[1754826631999,23.22237,4206.8,4206.7,2.6068]
[1754826632693,24.19017,4206.8,4206.7,2.6068]
[1754826632996,24.20017,4206.8,4206.7,2.6068]
[1754826633196,24.06061817,4206.8,4206.7,2.6068]
[1754826633390,1.15097,4206.8,4206.7,2.6068]
[1754826633596,23.22037,4206.8,4206.7,3.98429897]
[1754826634098,23.61537,4206.8,4206.7,3.98429897]
[1754826634402,24.95094996,4206.8,4206.7,2.1677]
[1754826634699,0.47544,4206.1,4206.0,2.6068]
[1754826634900,22.746,4206.1,4206.0,2.6068]
[1754826635402,22.746,4206.1,4202.3,2.93637355]
[1754826635403,0.3701,4204.9,4204.8,0.3766]
[1754826635599,24.15528,4204.9,4204.8,1.0364]
[1754826635900,23.58868,4204.9,4204.8,2.41389897]
[1754826636101,23.58868,4204.9,4204.8,3.99879897]
[1754826637598,0.84568,4204.9,4204.8,3.99879897]
[1754826637796,23.58968,4204.9,4204.8,3.99879897]
[1754826638303,0.9449,4204.8,4204.2,0.43]
[1754826638602,0.95,4204.8,4204.7,2.6213]
[1754826638901,1.4964,4204.8,4204.7,2.6213]
[1754826639097,0.9449,4204.8,4204.7,2.6213]
[1754826639299,0.9449,4204.8,4203.1,28.536]
[1754826639300,1.13533,4204.5,4204.4,1.5979]
[1754826639599,0.95,4204.5,4204.4,2.1913]
[1754826639900,24.2384,4204.5,4204.4,2.32789897]
[1754826640100,25.00857593,4204.5,4204.4,2.32789897]
[1754826640501,25.00857593,4204.5,4204.4,2.92129897]
[1754826641097,25.00857593,4204.5,4204.4,3.56879897]
[1754826641297,0.47577,4203.2,4202.9,1.5849]
[1754826641502,0.47577,4203.2,4203.1,2.6213]
[1754826641704,1.61307,4204.5,4203.2,1.5849]
[1754826641897,1.61307,4204.5,4203.3,1.5849]
[1754826641898,1.18915,4204.2,4203.3,1.5849]
[1754826642097,1.18927,4204.1,4204.0,1.9204]
[1754826642297,1.18927,4204.1,4204.0,2.6213]
[1754826643004,23.21667,4204.1,4204.0,2.6213]
[1754826643194,23.50627,4204.1,4204.0,2.6213]
[1754826643397,23.37928232,4204.1,4204.0,2.6213]
[1754826643594,29.01961,4204.6,4204.5,2.6213]
[1754826643907,22.743,4204.6,4204.5,2.6213]
[1754826644203,0.47568,4204.0,4203.9,2.6213]
[1754826644507,1.18926,4203.8,4202.9,1.4664]
[1754826644694,0.47576,4203.3,4203.2,1.6298]
[1754826644900,1.18936,4203.3,4203.2,2.6213]
[1754826645205,1.18936,4203.3,4203.2,2.1913]
[1754826645404,1.95903905,4203.3,4203.2,1.9204]
[1754826645602,1.17908881,4203.3,4203.2,1.9204]
[1754826646305,1.78608876,4203.3,4203.2,1.9204]
[1754826646600,1.94873556,4203.3,4203.2,0.5934]
[1754826647099,1.94873556,4203.3,4203.2,1.5438]
[1754826647303,23.51364675,4203.3,4203.2,2.6213]
[1754826647504,23.35099995,4203.3,4203.2,2.6213]
[1754826647693,22.744,4203.3,4203.2,2.6213]
[1754826648107,22.744,4203.6,4203.4,0.6475]
[1754826648305,0.47571,4203.7,4203.6,1.0364]
[1754826648501,0.77001716,4204.0,4203.6,1.0364]
[1754826648806,22.743,4204.1,4204.0,1.0364]
[1754826648999,0.01089509,4204.1,4204.0,2.6213]
[1754826649197,0.424,4204.8,4204.2,0.3889]
[1754826649198,22.743,4204.3,4204.2,0.3889]
[1754826649396,22.90570586,4204.3,4204.2,2.6213]
[1754826650696,0.16270586,4204.3,4204.2,2.6213]
[1754826650896,0.47558,4204.9,4204.8,2.6213]
[1754826651102,16.97558,4204.9,4204.8,2.6213]
[1754826651299,0.5876,4204.8,4204.2,1.1549]
[1754826651600,1.4872,4204.7,4204.0,0.5934]
[1754826651802,1.0116,4204.4,4203.1,1.5849]
[1754826652006,0.89964,4204.3,4204.2,2.1913]
[1754826652301,1.22600586,4204.8,4204.3,1.6298]
[1754826652302,22.743,4204.4,4204.3,1.6298]
[1754826652506,23.32970586,4204.4,4204.3,2.6213]
[1754826652708,24.97130586,4204.4,4204.3,2.6213]
[1754826653315,0.16270586,4204.4,4204.3,2.6213]
[1754826653502,22.741,4204.9,4204.3,1.5849]
[1754826653698,22.741,4205.3,4204.7,1.5849]
[1754826654007,0.16305381,4205.2,4205.0,0.43]
[1754826654302,0.16305381,4205.2,4204.7,0.4756]
[1754826654510,0.16305381,4205.2,4205.1,1.5849]
[1754826654704,0.58705381,4205.2,4205.1,1.5849]
[1754826654909,23.32705381,4205.2,4205.1,1.5849]
[1754826655900,23.7516,4205.2,4205.1,1.5849]
[1754826656602,23.7516,4205.2,4205.1,0.5934]
[1754826656804,1.054,4204.8,4204.7,2.0279]
[1754826657104,2.0656,4204.8,4204.7,2.0279]
[1754826657503,2.0656,4204.8,4204.7,2.6213]
[1754826657906,0.424,4205.2,4204.7,1.0364]
[1754826658109,2.0656,4205.2,4205.1,2.6213]
[1754826658411,24.8026,4205.2,4205.1,2.6213]
[1754826658613,0.47555,4205.1,4204.4,0.43]
[1754826658803,1.478,4205.0,4204.9,1.4664]
[1754826659011,2.0656,4205.1,4205.0,2.6213]
[1754826659205,24.8006,4205.1,4205.0,2.6213]
[1754826659607,0.3701,4205.1,4205.0,2.6213]
[1754826659815,22.735,4205.1,4205.0,2.6213]
[1754826660314,2.0656,4205.4,4205.3,1.0364]
[1754826660507,24.7996,4205.4,4205.3,2.6213]
[1754826660708,25.2753,4205.4,4205.3,0.5934]
[1754826660909,24.2637,4205.4,4204.9,0.5934]
[1754826661110,2.0656,4205.0,4204.9,1.1549]
[1754826661410,2.0656,4205.0,4204.9,0.5934]
[1754826661607,1.0116,4204.9,4204.2,0.43]
[1754826661805,2.0656,4204.7,4204.6,1.0364]
[1754826662009,0.60719808,4204.7,4204.6,2.6213]
[1754826663811,0.60719808,4204.9,4204.8,2.6213]
[1754826664112,25.30125109,4205.2,4205.1,1.0364]
[1754826664306,27.15574917,4205.2,4205.1,2.6213]
[1754826664812,27.15474917,4205.2,4205.1,2.6213]
[1754826665313,26.67920917,4205.2,4205.1,2.6213]
[1754826665612,3.94820917,4205.2,4205.1,2.6213]
[1754826665813,3.34101109,4205.2,4205.1,2.6213]
[1754826666113,26.07101109,4205.2,4205.1,2.6213]
[1754826666312,23.49593699,4205.2,4205.1,2.6213]
[1754826668914,24.23613699,4205.2,4205.1,2.6213]
[1754826669416,0.15873891,4205.2,4205.1,3.09686]
[1754826669616,0.76448,4205.8,4205.7,2.5858]
[1754826669815,25.19598,4205.8,4205.7,0.5795]
[1754826670114,2.46904,4205.3,4205.2,0.3734]
[1754826670419,2.4767,4205.0,4204.9,0.9604]
[1754826670611,2.4767,4205.0,4204.9,2.5858]
[1754826670612,1.9935,4205.0,4204.9,2.5858]
[1754826671319,24.7185,4205.0,4204.9,2.5858]
[1754826671517,24.87723891,4205.0,4204.9,2.5858]
[1754826671817,25.36043891,4205.0,4204.9,0.5795]
[1754826672017,1.0292,4204.7,4204.6,0.5795]
[1754826672223,23.7532,4204.7,4204.6,0.9604]
[1754826672515,24.87623891,4204.7,4204.6,0.5795]
[1754826672715,25.35943891,4204.7,4204.6,0.5795]
[1754826673814,1.0292,4204.3,4204.2,2.1673]
[1754826674119,24.7175,4204.3,4204.2,2.1673]
[1754826674312,24.87623891,4204.3,4204.2,2.1673]
[1754826674919,24.87623891,4204.3,4204.2,2.5858]
[1754826675514,22.88173891,4204.3,4204.2,2.5858]
[1754826675707,24.87523891,4204.3,4204.2,2.5858]
[1754826675912,24.87523891,4204.3,4204.2,2.1673]
[1754826676112,25.35843891,4204.3,4204.2,2.1673]
[1754826676617,24.87523891,4204.3,4204.2,2.1673]
[1754826676817,24.87523891,4204.3,4204.2,2.5858]
[1754826678011,2.15223891,4204.3,4204.2,2.5858]
[1754826678215,0.47562,4204.6,4204.4,1.0434]
[1754826678509,24.7135,4204.5,4204.4,1.0434]
[1754826678716,24.87223891,4204.5,4204.4,1.0434]
[1754826678912,0.7402,4204.1,4204.0,0.9604]
[1754826679119,25.1967,4204.1,4204.0,0.9604]
[1754826679319,25.35543891,4204.1,4204.0,0.9604]
[1754826679714,0.7402,4203.6,4203.5,1.0434]
[1754826679917,23.7492,4203.6,4203.5,1.0434]
[1754826680116,23.90793891,4203.6,4203.5,1.0434]
[1754826680524,23.16773891,4203.6,4203.5,2.5858]
[1754826682524,0.15873891,4203.6,4203.5,2.5858]
[1754826682821,0.15873891,4203.8,4203.7,2.5858]
[1754826683013,22.718,4203.9,4203.7,2.5858]
[1754826683217,0.15873891,4203.8,4203.7,1.0434]
[1754826683816,0.15873891,4203.8,4203.7,2.5858]
[1754826684317,0.15873891,4204.0,4203.9,1.0434]
[1754826684622,0.15873891,4204.0,4203.9,2.5858]
[1754826685020,0.4084,4205.0,4203.9,2.5858]
[1754826685234,0.47561,4204.7,4204.6,2.5858]
[1754826685626,1.54171,4204.7,4204.6,2.5858]
[1754826685823,1.91321,4204.7,4204.6,2.5858]
[1754826686020,1.0292,4204.7,4204.6,2.5858]
[1754826686219,0.289,4204.7,4204.6,2.5858]
[1754826686416,0.4084,4205.0,4204.9,1.0434]
[1754826686724,1.0292,4205.0,4204.9,2.5858]
[1754826686929,24.1516,4205.0,4204.9,2.5858]
[1754826687122,23.003,4205.0,4204.9,2.5858]
[1754826687824,23.003,4205.0,4203.9,1.18922]
[1754826687825,0.9274,4204.3,4204.0,0.5795]
[1754826688021,1.18906,4204.6,4204.0,0.5795]
[1754826688022,3.02807,4204.1,4204.0,0.9604]
[1754826688221,25.74107,4204.1,4204.0,0.9604]
[1754826688418,0.47581,4202.9,4202.8,1.0434]
[1754826688622,0.47581,4202.9,4202.8,2.5858]
[1754826688828,0.76481,4202.9,4202.8,2.5858]
[1754826689029,2.46931,4202.9,4202.8,2.5858]
[1754826689221,2.46931,4202.9,4202.8,2.1673]
[1754826689426,2.46931,4202.9,4202.8,1.6229]
[1754826689730,3.02821,4202.9,4202.8,0.5795]
[1754826689918,3.02821,4202.9,4202.5,0.4185]
[1754826689919,2.46934,4202.6,4202.5,0.9604]
[1754826690928,3.02824,4202.6,4202.5,0.9604]
[1754826692027,3.02824,4202.6,4202.5,1.8782]
[1754826692730,2.46934,4202.6,4202.5,2.5858]
[1754826693024,0.289,4202.6,4202.5,2.5858]
[1754826693228,0.47583,4202.7,4202.6,1.5424]
[1754826693427,1.50503,4202.7,4202.6,2.5858]
[1754826693626,1.0292,4202.7,4202.6,2.5858]
[1754826693830,0.289,4202.7,4202.6,2.5858]
[1754826694420,1.91335,4203.4,4203.3,1.4619]
[1754826694625,25.18025,4203.4,4203.3,2.5858]
[1754826694825,25.73915,4203.4,4203.3,2.1673]
[1754826695230,1.9935,4202.8,4202.7,1.7864]
[1754826695531,24.7055,4202.8,4202.7,2.5903]
[1754826695926,22.9943,4203.1,4203.0,2.6367]
[1754826696724,29.02971,4203.7,4203.6,1.0632]
[1754826697030,52.14951,4203.7,4203.6,2.6367]
[1754826697229,52.30174993,4203.7,4203.6,2.6367]
[1754826697430,52.87774993,4203.7,4203.6,2.6367]
[1754826697830,53.44454993,4203.7,4203.6,2.2137]
[1754826698336,53.44454993,4203.7,4203.6,1.6302]
[1754826698629,1.5526,4203.3,4202.9,0.423]
[1754826698829,3.09338,4203.1,4203.0,1.5347]
[1754826699038,2.67881993,4203.1,4203.0,2.6367]
[1754826699730,3.24561993,4203.1,4203.0,2.2137]
[1754826701632,2.67895943,4203.1,4203.0,2.6367]
[1754826702634,0.47583,4202.8,4201.5,1.1899]
[1754826702939,24.26643,4202.7,4202.6,2.6367]
[1754826703130,0.47586,4202.4,4202.2,0.5835]
[1754826703332,24.24686,4202.4,4202.3,1.0632]
[1754826703531,25.23266,4202.4,4202.3,2.0532]
[1754826703732,25.23266,4202.4,4202.3,2.6367]
[1754826704740,1.95071,4202.0,4201.9,2.6367]
[1754826705039,23.46321,4202.0,4201.9,2.6367]
[1754826705731,24.65471,4202.0,4201.9,2.6367]
[1754826706137,1.54096,4201.5,4201.4,1.40765619]
[1754826706343,25.79756,4201.5,4201.4,1.02345619]
[1754826706637,25.94833947,4201.5,4201.4,1.02345619]
[1754826706834,25.94833947,4201.5,4201.4,1.80195619]
[1754826707030,25.94833947,4201.5,4201.4,1.02345619]
[1754826707336,25.94833947,4201.5,4201.4,0.52072619]
[1754826707337,31.94833947,4201.5,4201.4,0.52072619]
[1754826709043,25.94733947,4201.5,4201.4,0.52072619]
[1754826710040,25.38353947,4201.5,4201.4,2.73442619]
[1754826710246,25.38353947,4201.5,4201.4,3.15742619]
[1754826710637,0.47604,4200.9,4198.9,1.19064]
[1754826710840,25.3226,4200.8,4200.7,1.0632]
[1754826711037,23.77,4200.8,4200.7,1.0632]
[1754826711237,0.576,4201.5,4200.7,1.0632]
[1754826711438,0.47601,4201.1,4200.7,1.0632]
[1754826711738,22.704,4201.0,4200.7,1.0632]
[1754826712542,0.576,4200.8,4200.3,1.0632]